fUSD/lending_fUSD_20240117
["ID","MTS","AMOUNT","RATE_DAILY","PERIOD"]
[311993291,1705534245048,-500.0,0.00022643,2]
[311993293,1705534245057,-1312.26,0.00022643,2]
[311993295,1705534245067,-1589.86,0.00022643,2]
[311993297,1705534245076,-500.0,0.00022643,2]
[311993299,1705534245085,-500.0,0.00022643,2]
[311993301,1705534245095,-500.0,0.00022643,2]
[311993303,1705534245104,-500.0,0.00022643,2]
[311993305,1705534245113,-595.54,0.00022643,2]
[311993307,1705534245122,-500.0,0.00022643,2]
[311993310,1705534245131,-500.0,0.00022643,2]
[311993312,1705534245140,-500.0,0.00022643,2]
[311993314,1705534245149,-500.0,0.00022643,2]
[311993316,1705534245158,-500.0,0.00022643,2]
[311993318,1705534245167,-1111.42,0.00022643,2]
[311993320,1705534245176,-500.0,0.00022643,2]
[311993322,1705534245185,-500.0,0.00022643,2]
[311993324,1705534245194,-368.74,0.00022643,2]
[311993326,1705534245203,-535.01,0.00022643,2]
[311993328,1705534245217,-500.0,0.00022643,2]
[311993330,1705534245226,-500.0,0.00022643,2]
[311993332,1705534245234,-746.37,0.00022643,2]
[311993334,1705534245244,-500.0,0.00022643,2]
[311993336,1705534245253,-500.0,0.00022643,2]
[311993338,1705534245262,-500.0,0.00022643,2]
[311993340,1705534245271,-4147.75,0.00022643,2]
[311993342,1705534245280,-408.84,0.00022643,2]
[311993344,1705534245289,-500.0,0.00022643,2]
[311993346,1705534245299,-500.0,0.00022643,2]
[311993348,1705534245308,-299.5,0.00022643,2]
[311993350,1705534245318,-500.0,0.00022643,2]
[311993352,1705534245327,-500.0,0.00022643,2]
[311993354,1705534245337,-500.0,0.00022643,2]
[311993356,1705534245346,-500.0,0.00022643,2]
[311993358,1705534245356,-500.0,0.00022643,2]
[311993360,1705534245365,-500.0,0.00022643,2]
[311993362,1705534245374,-500.0,0.00022643,2]
[311993364,1705534245383,-500.0,0.00022643,2]
[311993367,1705534245392,-500.0,0.00022643,2]
[311993368,1705534245401,-500.0,0.00022643,2]
[311993371,1705534245411,-536.89,0.00022643,2]
[311993373,1705534245420,-423.21,0.00022643,2]
[311993375,1705534245429,-500.0,0.00022643,2]
[311993377,1705534245440,-191.91,0.00022643,2]
[311993379,1705534245452,-532.83,0.00022643,2]
[311993381,1705534245461,-500.0,0.00022643,2]
[311993383,1705534245470,-500.0,0.00022643,2]
[311993385,1705534245479,-500.0,0.00022643,2]
[311993387,1705534245488,-500.0,0.00022643,2]
[311993389,1705534245497,-2292.72,0.00022643,2]
[311993391,1705534245506,-278.03,0.00022643,2]
[311993394,1705534245515,-500.0,0.00022643,2]
[311993396,1705534245526,-1096.48,0.00022643,2]
[311993399,1705534245535,-1086.66,0.00022643,2]
[311993401,1705534245545,-500.0,0.00022643,2]
[311993404,1705534245555,-504.39,0.00022643,2]
[311993409,1705534245564,-572.27,0.00022643,2]
[311993410,1705534245573,-500.0,0.00022643,2]
[311993411,1705534245582,-500.0,0.00022643,2]
[311993412,1705534245591,-500.0,0.00022643,2]
[311993413,1705534245601,-557.3,0.00022643,2]
[311993414,1705534245610,-500.0,0.00022643,2]
[311993415,1705534245620,-500.0,0.00022643,2]
[311993416,1705534245629,-500.0,0.00022643,2]
[311993418,1705534245638,-811.74,0.00022643,2]
[311993420,1705534245648,-500.0,0.00022643,2]
[311993421,1705534245657,-500.0,0.00022643,2]
[311993424,1705534245667,-500.0,0.00022643,2]
[311993425,1705534245677,-500.0,0.00022643,2]
[311993428,1705534245686,-500.0,0.00022643,2]
[311993430,1705534245695,-769.98,0.00022643,2]
[311993432,1705534245705,-788.43,0.00022644,2]
[311993434,1705534245714,-505.15,0.00022644,2]
[311993436,1705534245723,-1332.63,0.00022644,2]
[311993438,1705534245733,-500.0,0.00022644,5]
[311993440,1705534245742,-864.86,0.00022644,2]
[311993442,1705534245751,-672.49,0.00022644,2]
[311993444,1705534245760,-500.0,0.00022644,2]
[311993446,1705534245769,-161.0,0.00022644,2]
[311993448,1705534245779,-500.0,0.00022644,2]
[311993450,1705534245788,-500.0,0.00022644,2]
[311993452,1705534245798,-780.26,0.00022644,2]
[311993454,1705534245807,-500.0,0.00022644,2]
[311993456,1705534245816,-500.0,0.00022644,2]
[311993458,1705534245825,-500.0,0.00022644,2]
[311993459,1705534245835,-500.0,0.00022644,2]
[311993461,1705534245844,-591.21,0.00022644,2]
[311993463,1705534245853,-500.0,0.00022644,2]
[311993466,1705534245862,-500.0,0.00022644,2]
[311993468,1705534245871,-646.98,0.00022644,2]
[311993470,1705534245880,-500.0,0.00022644,2]
[311993472,1705534245891,-500.0,0.00022644,2]
[311993473,1705534245900,-500.0,0.00022644,2]
[311993475,1705534245910,-500.0,0.00022644,2]
[311993477,1705534245920,-500.0,0.00022644,2]
[311993479,1705534245930,-500.0,0.00022644,2]
[311993481,1705534245939,-500.0,0.00022644,2]
[311993483,1705534245949,-500.0,0.00022644,2]
[311993485,1705534245958,-546.18,0.00022644,2]
[311993488,1705534245968,-669.48,0.00022644,2]
[311993490,1705534245978,-500.0,0.00022645,2]
[311993491,1705534245988,-1339.45,0.00022645,2]
[311993494,1705534246002,-1204.13,0.00022645,2]
[311993495,1705534246012,-500.0,0.00022645,2]
[311993497,1705534246022,-500.0,0.00022645,2]
[311993499,1705534246032,-500.0,0.00022645,2]
[311993502,1705534246042,-532.11,0.00022645,2]
[311993504,1705534246052,-332.54710726,0.00022645,2]
[311993505,1705534246061,-373.35,0.00022645,2]
[311993508,1705534246072,-500.0,0.00022645,2]
[311993510,1705534246082,-500.0,0.00022645,2]
[311993512,1705534246092,-369.64,0.00022645,2]
[311993514,1705534246101,-508.73,0.00022645,2]
[311993516,1705534246110,-500.0,0.00022645,2]
[311993518,1705534246120,-500.0,0.00022645,2]
[311993520,1705534246130,-514.197498,0.00022645,2]
[311993522,1705534246139,-348.59,0.00022645,2]
[311993524,1705534246153,-500.0,0.00022645,2]
[311993525,1705534246162,-500.0,0.00022645,2]
[311993528,1705534246171,-500.0,0.00022645,2]
[311993530,1705534246180,-500.0,0.00022645,2]
[311993532,1705534246189,-500.0,0.00022645,2]
[311993534,1705534246198,-500.0,0.00022645,2]
[311993536,1705534246207,-500.0,0.00022645,2]
[311993538,1705534246216,-500.0,0.00022645,2]
[311993540,1705534246225,-288.33993621,0.00022645,2]
[311993542,1705534246234,-500.0,0.00022645,2]
[311993543,1705534246243,-500.0,0.00022645,2]
[311993546,1705534246253,-500.0,0.00022645,2]
[311993548,1705534246262,-310.09,0.00022645,2]
[311993550,1705534246271,-221.1,0.00022645,2]
[311993552,1705534246280,-500.0,0.00022645,2]
[311993554,1705534246289,-500.0,0.00022645,2]
[311993556,1705534246298,-445.87,0.00022645,2]
[311993558,1705534246307,-500.0,0.00022645,2]
[311993559,1705534246316,-500.0,0.00022645,2]
[311993562,1705534246326,-500.0,0.00022645,2]
[311993563,1705534246336,-500.0,0.00022645,2]
[311993565,1705534246345,-377.89,0.00022645,2]
[311993567,1705534246354,-203.86,0.00022645,2]
[311993569,1705534246364,-500.0,0.00022645,2]
[311993571,1705534246373,-500.0,0.00022645,2]
[311993573,1705534246382,-500.0,0.00022645,2]
[311993575,1705534246391,-500.0,0.00022645,2]
[311993578,1705534246400,-500.0,0.00022645,2]
[311993580,1705534246409,-276.68,0.00022645,2]
[311993582,1705534246419,-500.0,0.00022645,2]
[311993584,1705534246428,-299.62,0.00022645,2]
[311993586,1705534246437,-150.29,0.00022665,2]
[311993588,1705534246453,-1270.14695015,0.0002267,2]
[311993590,1705534246462,-155.15,0.00022678,2]
[311993592,1705534246471,-5502.85272609,0.00022703,2]
[311993594,1705534246481,-151.0,0.00022739,7]
[311993596,1705534246490,-151.0,0.00022739,7]
[311993598,1705534246499,-151.0,0.00022739,7]
[311993600,1705534246509,-151.0,0.00022739,7]
[311993602,1705534246519,-278.035526,0.00022739,7]
[311993604,1705534246528,-151.0,0.00022739,7]
[311993606,1705534246538,-151.0,0.00022739,7]
[311993608,1705534246547,-151.0,0.00022739,7]
[311993610,1705534246556,-151.0,0.00022739,7]
[311993612,1705534246566,-500.0,0.00022739,2]
[311993614,1705534246575,-500.0,0.00022739,2]
[311993616,1705534246584,-500.0,0.00022739,2]
[311993618,1705534246593,-276.54,0.00022739,2]
[311993620,1705534246602,-500.0,0.00022739,2]
[311993622,1705534246611,-500.0,0.00022739,2]
[311993624,1705534246621,-500.0,0.00022739,2]
[311993626,1705534246630,-622.77,0.00022739,2]
[311993628,1705534246640,-500.0,0.00022739,2]
[311993630,1705534246649,-199.98,0.00022739,2]
[311993632,1705534246658,-500.0,0.00022739,2]
[311993634,1705534246667,-575.21,0.00022739,2]
[311993636,1705534246679,-500.0,0.00022739,2]
[311993638,1705534246689,-500.0,0.00022739,2]
[311993640,1705534246698,-500.0,0.00022739,2]
[311993642,1705534246707,-500.0,0.00022739,2]
[311993644,1705534246716,-500.0,0.00022739,2]
[311993646,1705534246725,-500.0,0.00022739,2]
[311993648,1705534246734,-500.0,0.00022739,2]
[311993650,1705534246743,-500.0,0.00022739,2]
[311993652,1705534246752,-500.0,0.00022739,2]
[311993654,1705534246762,-500.0,0.00022739,2]
[311993656,1705534246772,-500.0,0.00022739,2]
[311993658,1705534246782,-155.63,0.0002277,2]
[311993660,1705534246791,-1639.24236443,0.00022771,2]
[311993662,1705534246801,-154.79,0.00022794,2]
[311993664,1705534246810,-158.82,0.00022798,2]
[311993666,1705534246820,-19739.60926048,0.000228,2]
[311993668,1705534246829,-5502.85272609,0.00022802,2]
[311993670,1705534246838,-222.86,0.00022813,2]
[311993672,1705534246848,-500.0,0.00022815,2]
[311993674,1705534246860,-164.12104773,0.00022817,2]
[311993676,1705534246869,-192.26906925,0.00022817,2]
[311993679,1705534246879,-391.99322288,0.00022817,2]
[311993681,1705534246888,-618.87394446,0.00022817,2]
[311993683,1705534246897,-191.43816147,0.00022817,2]
[311993685,1705534246907,-2216.63659733,0.00022817,2]
[311993687,1705534246917,-192.26906923,0.00022859,2]
[311993689,1705534246927,-391.99322286,0.00022859,2]
[311993691,1705534246937,-618.87394445,0.00022859,2]
[311993692,1705534246946,-191.43816147,0.00022859,2]
[311993693,1705534246956,-169.17,0.00022871,2]
[311993694,1705534246965,-150.29,0.00022881,2]
[311993695,1705534246975,-162.13465043,0.00022895,2]
[311993696,1705534246985,-5502.85272609,0.000229,2]
[311993697,1705534246994,-1639.24236443,0.000229,2]
[311993699,1705534247003,-152.36768125,0.000229,2]
[311993701,1705534247012,-5800.0,0.000229,2]
[311993703,1705534247022,-152.36768109,0.000229,2]
[311993705,1705534247032,-152.36768109,0.000229,2]
[311993707,1705534247041,-430.49393703,0.000229,6]
[311993709,1705534247050,-192.26906923,0.000229,2]
[311993711,1705534247059,-391.99322286,0.000229,2]
[311993713,1705534247068,-618.87394445,0.000229,2]
[311993715,1705534247078,-191.43816147,0.000229,2]
[311993717,1705534247087,-155.15,0.00022903,2]
[311993719,1705534247098,-57637.0,0.00022904,2]
[311993721,1705534247107,-2477.74,0.00022916,2]
[311993723,1705534247116,-500.0,0.00022916,2]
[311993725,1705534247125,-893.26,0.00022916,2]
[311993732,1705534247183,-500.0,0.00022916,2]
[311993734,1705534247193,-547.02,0.00022916,2]
[311993736,1705534247202,-993.54,0.00022916,2]
[311993738,1705534247212,-500.0,0.00022916,2]
[311993740,1705534247221,-7096.18,0.00022916,2]
[311993742,1705534247231,-1653.55,0.00022916,2]
[311993744,1705534247240,-500.0,0.00022916,2]
[311993746,1705534247249,-500.0,0.00022916,2]
[311993748,1705534247258,-500.0,0.00022916,2]
[311993750,1705534247267,-600.38,0.00022916,2]
[311993752,1705534247276,-470.84,0.00022916,2]
[311993754,1705534247287,-500.0,0.00022916,2]
[311993756,1705534247296,-500.0,0.00022916,2]
[311993758,1705534247305,-3285.66,0.00022916,2]
[311993760,1705534247314,-5034.74,0.00022916,2]
[311993762,1705534247323,-1824.58,0.00022916,2]
[311993764,1705534247333,-1231.66,0.00022916,2]
[311993766,1705534247342,-389.51,0.00022916,2]
[311993768,1705534247352,-500.0,0.00022916,2]
[311993770,1705534247362,-655.73,0.00022916,2]
[311993772,1705534247372,-500.0,0.00022916,2]
[311993775,1705534247383,-500.0,0.00022916,2]
[311993776,1705534247393,-500.0,0.00022916,2]
[311993778,1705534247402,-801.9,0.00022916,2]
[311993781,1705534247412,-500.0,0.00022916,2]
[311993783,1705534247421,-500.0,0.00022916,2]
[311993785,1705534247432,-500.0,0.00022916,2]
[311993786,1705534247445,-5969.19,0.00022916,2]
[311993788,1705534247454,-500.0,0.00022916,2]
[311993791,1705534247463,-671.64,0.00022916,2]
[311993792,1705534247472,-500.0,0.00022916,2]
[311993794,1705534247481,-500.0,0.00022916,2]
[311993796,1705534247490,-500.0,0.00022916,2]
[311993798,1705534247499,-500.0,0.00022916,2]
[311993800,1705534247509,-778.63,0.00022916,2]
[311993802,1705534247519,-500.0,0.00022916,2]
[311993805,1705534247531,-500.0,0.00022916,2]
[311993806,1705534247541,-1064.56,0.00022916,2]
[311993808,1705534247550,-500.0,0.00022916,2]
[311993810,1705534247559,-1070.95,0.00022916,2]
[311993812,1705534247568,-1394.6,0.00022916,2]
[311993814,1705534247577,-500.0,0.00022916,2]
[311993816,1705534247587,-755.76,0.00022916,2]
[311993818,1705534247596,-500.0,0.00022916,2]
[311993820,1705534247605,-1147.55,0.00022916,2]
[311993822,1705534247615,-500.0,0.00022916,2]
[311993824,1705534247624,-500.0,0.00022916,2]
[311993826,1705534247633,-1974.89,0.00022916,5]
[311993829,1705534247642,-500.0,0.00022916,2]
[311993830,1705534247652,-513.37,0.00022916,2]
[311993833,1705534247662,-2013.58,0.00022916,2]
[311993834,1705534247672,-500.0,0.00022916,2]
[311993837,1705534247683,-513.2,0.00022916,2]
[311993838,1705534247693,-500.0,0.00022916,2]
[311993840,1705534247704,-300.0,0.00022916,2]
[311993843,1705534247714,-300.0,0.00022916,2]
[311993845,1705534247725,-1325.74,0.00022916,2]
[311993847,1705534247734,-300.0,0.00022916,2]
[311993849,1705534247743,-300.0,0.00022916,2]
[311993851,1705534247753,-500.0,0.00022916,2]
[311993853,1705534247762,-806.09,0.00022916,2]
[311993855,1705534247771,-3284.01,0.00022916,2]
[311993857,1705534247781,-500.0,0.00022916,2]
[311993859,1705534247790,-500.0,0.00022916,2]
[311993861,1705534247799,-678.88,0.00022916,2]
[311993863,1705534247809,-500.0,0.00022916,2]
[311993865,1705534247818,-500.0,0.00022916,2]
[311993867,1705534247828,-2695.71,0.00022916,2]
[311993869,1705534247837,-500.0,0.00022916,2]
[311993871,1705534247846,-500.0,0.00022916,2]
[311993873,1705534247856,-696.82,0.00022916,2]
[311993875,1705534247866,-151.0,0.00022917,7]
[311993877,1705534247875,-151.0,0.00022917,7]
[311993879,1705534247885,-151.0,0.00022917,7]
[311993881,1705534247894,-648.77475708,0.00022917,2]
[311993883,1705534247902,-437.47,0.00022917,2]
[311993885,1705534247912,-500.0,0.00022917,2]
[311993887,1705534247921,-500.0,0.00022917,2]
[311993889,1705534247930,-500.0,0.00022917,2]
[311993891,1705534247940,-430.02,0.00022917,2]
[311993893,1705534247949,-500.0,0.00022917,2]
[311993895,1705534247959,-500.0,0.00022917,2]
[311993897,1705534247968,-500.0,0.00022917,2]
[311993899,1705534247977,-500.0,0.00022917,2]
[311993901,1705534247987,-500.0,0.00022917,2]
[311993903,1705534247996,-500.0,0.00022917,2]
[311993905,1705534248005,-333.01,0.00022917,2]
[311993907,1705534248014,-395.01,0.00022917,2]
[311993909,1705534248023,-500.0,0.00022917,2]
[311993911,1705534248032,-500.0,0.00022917,2]
[311993913,1705534248041,-500.0,0.00022917,2]
[311993915,1705534248050,-326.63,0.00022917,2]
[311993917,1705534248059,-500.0,0.00022917,2]
[311993919,1705534248068,-464.36,0.00022917,2]
[311993921,1705534248078,-500.0,0.00022917,2]
[311993923,1705534248087,-506.62,0.00022917,2]
[311993925,1705534248096,-150.0,0.00022917,2]
[311993927,1705534248106,-500.0,0.00022917,2]
[311993929,1705534248115,-578.9,0.00022917,2]
[311993931,1705534248125,-500.0,0.00022917,2]
[311993933,1705534248135,-500.0,0.00022917,2]
[311993935,1705534248143,-500.0,0.00022917,2]
[311993937,1705534248152,-500.0,0.00022917,2]
[311993939,1705534248162,-500.0,0.00022917,2]
[311993941,1705534248171,-175.39,0.00022917,2]
[311993943,1705534248180,-500.0,0.00022917,2]
[311993945,1705534248189,-500.0,0.00022917,2]
[311993946,1705534248198,-500.0,0.00022917,2]
[311993947,1705534248207,-500.0,0.00022917,2]
[311993948,1705534248216,-500.0,0.00022917,2]
[311993949,1705534248225,-500.0,0.00022917,2]
[311993950,1705534248233,-500.0,0.00022917,2]
[311993951,1705534248242,-500.0,0.00022917,2]
[311993953,1705534248251,-500.0,0.00022917,2]
[311993955,1705534248260,-500.0,0.00022917,2]
[311993957,1705534248269,-500.0,0.00022917,2]
[311993959,1705534248278,-500.0,0.00022917,2]
[311993961,1705534248287,-1312.26,0.00022917,2]
[311993963,1705534248297,-1589.86,0.00022917,2]
[311993965,1705534248307,-500.0,0.00022917,2]
[311993966,1705534248318,-500.0,0.00022917,2]
[311993969,1705534248328,-500.0,0.00022917,2]
[311993970,1705534248337,-500.0,0.00022917,2]
[311993972,1705534248348,-595.54,0.00022917,2]
[311993975,1705534248358,-500.0,0.00022917,2]
[311993976,1705534248366,-500.0,0.00022917,2]
[311993978,1705534248375,-500.0,0.00022917,2]
[311993980,1705534248384,-500.0,0.00022917,2]
[311993982,1705534248393,-500.0,0.00022917,2]
[311993984,1705534248402,-1111.42,0.00022917,2]
[311993986,1705534248412,-500.0,0.00022917,2]
[311993989,1705534248422,-258.02,0.00022917,2]
[311993991,1705534248433,-535.01,0.00022917,2]
[311993993,1705534248446,-500.0,0.00022917,2]
[311993995,1705534248457,-500.0,0.00022917,2]
[311993997,1705534248466,-746.37,0.00022917,2]
[311993998,1705534248475,-500.0,0.00022917,2]
[311994000,1705534248484,-500.0,0.00022917,2]
[311994002,1705534248493,-500.0,0.00022917,2]
[311994004,1705534248502,-4147.75,0.00022917,2]
[311994006,1705534248511,-500.0,0.00022917,2]
[311994008,1705534248521,-500.0,0.00022917,2]
[311994010,1705534248531,-500.0,0.00022917,2]
[311994012,1705534248539,-500.0,0.00022917,2]
[311994014,1705534248548,-500.0,0.00022917,2]
[311994016,1705534248557,-500.0,0.00022917,2]
[311994018,1705534248567,-500.0,0.00022917,2]
[311994020,1705534248575,-500.0,0.00022917,2]
[311994022,1705534248585,-500.0,0.00022917,2]
[311994024,1705534248594,-500.0,0.00022917,2]
[311994026,1705534248603,-485.32,0.00022917,2]
[311994028,1705534248612,-500.0,0.00022917,2]
[311994030,1705534248622,-536.89,0.00022917,2]
[311994032,1705534248631,-500.0,0.00022917,2]
[311994034,1705534248640,-532.83,0.00022917,2]
[311994036,1705534248650,-564.35129803,0.00022917,2]
[311994038,1705534248659,-500.0,0.00022917,2]
[311994040,1705534248668,-500.0,0.00022917,2]
[311994042,1705534248679,-500.0,0.00022917,2]
[311994044,1705534248688,-2292.72,0.00022917,2]
[311994046,1705534248697,-387.13,0.00022917,2]
[311994048,1705534248706,-1096.48,0.00022917,2]
[311994050,1705534248715,-1086.66,0.00022917,2]
[311994052,1705534248724,-500.0,0.00022917,2]
[311994054,1705534248734,-504.39,0.00022917,2]
[311994056,1705534248743,-500.0,0.00022917,2]
[311994058,1705534248753,-500.0,0.00022917,2]
[311994060,1705534248762,-500.0,0.00022917,2]
[311994062,1705534248771,-557.3,0.00022917,2]
[311994064,1705534248780,-500.0,0.00022917,2]
[311994066,1705534248789,-500.0,0.00022917,2]
[311994068,1705534248798,-500.0,0.00022917,2]
[311994070,1705534248807,-811.74,0.00022917,2]
[311994072,1705534248816,-500.0,0.00022917,2]
[311994075,1705534248826,-500.0,0.00022917,2]
[311994077,1705534248835,-500.0,0.00022917,2]
[311994079,1705534248845,-500.0,0.00022917,2]
[311994081,1705534248854,-500.0,0.00022917,2]
[311994083,1705534248864,-769.98,0.00022917,2]
[311994085,1705534248873,-151.0,0.00022918,7]
[311994087,1705534248881,-788.43,0.00022918,2]
[311994089,1705534248890,-505.15,0.00022918,2]
[311994091,1705534248899,-1332.63,0.00022918,2]
[311994093,1705534248909,-500.0,0.00022918,5]
[311994095,1705534248917,-864.86,0.00022918,2]
[311994097,1705534248927,-672.49,0.00022918,2]
[311994099,1705534248936,-500.0,0.00022918,2]
[311994101,1705534248945,-500.0,0.00022918,2]
[311994103,1705534248954,-500.0,0.00022918,2]
[311994105,1705534248963,-780.26,0.00022918,2]
[311994107,1705534248975,-500.0,0.00022918,2]
[311994109,1705534248984,-500.0,0.00022918,2]
[311994111,1705534248993,-500.0,0.00022918,2]
[311994113,1705534249002,-500.0,0.00022918,2]
[311994115,1705534249011,-591.21,0.00022918,2]
[311994117,1705534249021,-500.0,0.00022918,2]
[311994119,1705534249030,-500.0,0.00022918,2]
[311994121,1705534249040,-646.98,0.00022918,2]
[311994123,1705534249048,-500.0,0.00022918,2]
[311994125,1705534249057,-500.0,0.00022918,2]
[311994127,1705534249066,-500.0,0.00022918,2]
[311994129,1705534249075,-500.0,0.00022918,2]
[311994131,1705534249084,-510.0,0.00022918,2]
[311994133,1705534249093,-500.0,0.00022918,2]
[311994135,1705534249102,-500.0,0.00022918,2]
[311994137,1705534249113,-500.0,0.00022918,2]
[311994139,1705534249122,-546.18,0.00022918,2]
[311994141,1705534249131,-669.48,0.00022918,2]
[311994143,1705534249141,-569.77,0.00022919,2]
[311994145,1705534249150,-1339.45,0.00022919,2]
[311994147,1705534249159,-1204.13,0.00022919,2]
[311994149,1705534249169,-500.0,0.00022919,2]
[311994151,1705534249178,-411.9,0.00022919,2]
[311994153,1705534249187,-500.0,0.00022919,2]
[311994155,1705534249196,-500.0,0.00022919,2]
[311994157,1705534249205,-180.43,0.00022919,2]
[311994159,1705534249215,-533.21,0.00022919,2]
[311994161,1705534249225,-150.12,0.00022919,2]
[311994163,1705534249234,-353.23,0.00022919,2]
[311994165,1705534249243,-500.0,0.00022919,2]
[311994167,1705534249252,-500.0,0.00022919,2]
[311994169,1705534249261,-483.1,0.00022919,2]
[311994171,1705534249270,-166.29,0.00022919,2]
[311994173,1705534249279,-500.0,0.00022919,2]
[311994175,1705534249288,-197.33,0.00022919,2]
[311994176,1705534249297,-406.5,0.00022919,2]
[311994178,1705534249307,-500.0,0.00022919,2]
[311994180,1705534249316,-500.0,0.00022919,2]
[311994182,1705534249326,-404.69,0.00022919,2]
[311994184,1705534249336,-340.75648679,0.00022919,2]
[311994186,1705534249345,-500.0,0.00022919,2]
[311994187,1705534249354,-1703.64,0.00022964,2]
[311994188,1705534249362,-719.68,0.00022966,2]
[311994189,1705534249372,-500.0,0.00022976,2]
[311994190,1705534249381,-500.0,0.00022976,2]
[311994191,1705534249390,-500.0,0.00022976,2]
[311994192,1705534249399,-500.0,0.00022976,2]
[311994194,1705534249408,-594.49,0.00022976,2]
[311994196,1705534249417,-151.0,0.00022977,7]
[311994198,1705534249427,-151.0,0.00022977,7]
[311994200,1705534249436,-151.0,0.00022977,7]
[311994203,1705534249451,-151.0,0.00022977,7]
[311994204,1705534249460,-29830.8522499,0.00022977,2]
[311994207,1705534249470,-21347.8293054,0.00022977,2]
[311994208,1705534249479,-4315.7603224,0.00022977,2]
[311994211,1705534249490,-2165.43256,0.00022977,2]
[311994213,1705534249499,-6714.5362975,0.00022977,2]
[311994215,1705534249508,-13791.30542,0.00022977,2]
[311994217,1705534249516,-29994.467184,0.00022984,2]
[311994218,1705534249527,-30158.0821181,0.00022984,2]
[311994220,1705534249537,-21464.9169318,0.00022984,2]
[311994223,1705534249546,-21582.0045583,0.00022984,2]
[311994224,1705534249555,-4339.431213,0.00022984,2]
[311994227,1705534249564,-4363.1021036,0.00022984,2]
[311994228,1705534249574,-2177.3094283,0.00022984,2]
[311994231,1705534249583,-2189.1862967,0.00022984,2]
[311994232,1705534249592,-6751.3638881,0.00022984,2]
[311994234,1705534249601,-6788.1914787,0.00022984,2]
[311994236,1705534249610,-13866.9473598,0.00022984,2]
[311994238,1705534249618,-13942.5892995,0.00022984,2]
[311994240,1705534249627,-151.0,0.00022984,7]
[311994242,1705534249636,-301.240424,0.00022984,7]
[311994244,1705534249645,-151.0,0.00022984,7]
[311994246,1705534249655,-1070.26939998,0.0002299,2]
[311994248,1705534249664,-300.0,0.00022992,2]
[311994250,1705534249673,-300.0,0.00022992,2]
[311994252,1705534249682,-300.0,0.00022992,2]
[311994255,1705534249691,-151.0,0.00022993,7]
[311994256,1705534249700,-151.0,0.00022993,7]
[311994258,1705534249710,-151.0,0.00022993,7]
[311994260,1705534249718,-151.0,0.00022993,7]
[311994262,1705534249727,-151.0,0.00022993,7]
[311994265,1705534249738,-151.0,0.00022993,7]
[311994266,1705534249748,-151.0,0.00022993,7]
[311994269,1705534249759,-320035.1306168,0.00022993,2]
[311994300,1705534250036,-500.0,0.00022094,2]
[311994302,1705534250046,-1321.7654466,0.00022993,2]
[311994304,1705534250062,-9490.35270458,0.00022993,2]
[311994307,1705534250073,-1926.39142144,0.00022993,2]
[311994309,1705534250085,-2808.48150703,0.00022993,2]